[Event "4th Memorial Warakomska-A 2020"]
[Site "Suwalki"]
[Date "2020.08.12"]
[Round "8.1"]
[White "Mulet, Piotr"]
[Black "Gumularz, Szymon"]
[Result "0-1"]
[ECO "A28"]
[WhiteElo "2217"]
[BlackElo "2513"]
[Annotator "ChessBase"]
[PlyCount "140"]
[EventDate "2020.08.06"]
[EventType "swiss"]
[EventCountry "POL"]
[SourceTitle "playchess.com"]
[Source "ChessBase"]
[SourceQuality "1"]
[TimeControl "40/5400+30:1800+30"]

1. c4 {[%emt 0:00:00]} Nf6 {[%emt 0:00:24]} 2. Nc3 {[%emt 0:00:00]} e5 {[%emt 0:00:26]} 3. Nf3 {[%emt 0:00:18]} Nc6 {[%emt 0:00:06]} 4. e4 {[%emt 0:00:11]} d6 {[%emt 0:00:50]} 5. d4 {[%emt 0:00:12]} Bg4 {[%emt 0:00:04]} 6. d5 {[%emt 0:00:22]} Nd4 {[%emt 0:00:06]} 7. Be3 {[%emt 0:00:23]} Nxf3+ {[%emt 0:00:24]} 8. gxf3 {[%emt 0:00:08]} Bd7 {[%emt 0:00:04]} 9. f4 {[%emt 0:00:48]} Ng4 {[%emt 0:00:09]} 10. Bh3 {[%emt 0:00:27]} Nxe3 {[%emt 0:19:43]} 11. Bxd7+ {[%emt 0:00:08]} Qxd7 {[%emt 0:00:16]} 12. fxe3 {[%emt 0:00:20]} exf4 {[%emt 0:00:14]} 13. exf4 {[%emt 0:00:46]} Be7 {[%emt 0:00:04]} 14. O-O {[%emt 0:08:55]} O-O {[%emt 0:00:48]} 15. e5 {[%emt 0:02:51]} Qf5 {[%emt 0:04:18]} 16. Qe2 {[%emt 0:07:56]} Rae8 {[%emt 0:02:31]} 17. Qe4 {[%emt 0:11:05]} Qxe4 {[%emt 0:05:57]} 18. Nxe4 {[%emt 0:00:07]} Bh4 {[%emt 0:21:20]} 19. c5 {[%emt 0:02:39]} dxe5 {[%emt 0:11:41]} 20. f5 {[%emt 0:00:13]} Rd8 {[%emt 0:01:23]} 21. Rad1 {[%emt 0:00:17]} f6 {[%emt 0:03:16]} 22. b4 {[%emt 0:03:43]} Bg5 {[%emt 0:02:42]} 23. Rd3 {[%emt 0:01:35]} Bf4 {[%emt 0:04:34]} 24. d6 {[%emt 0:03:12]} c6 {[%emt 0:04:51]} 25. a4 {[%emt 0:09:38]} g6 {[%emt 0:01:28]} 26. Ng3 {[%emt 0:00:07]} Kf7 {[%emt 0:01:56]} 27. b5 {[%emt 0:00:20]} Bxg3 {[%emt 0:04:14]} 28. hxg3 {[%emt 0:00:59]} gxf5 {[%emt 0:00:14]} 29. Rxf5 {[%emt 0:00:12]} Ke6 {[%emt 0:01:43]} 30. Rh5 {[%emt 0:03:16]} Rd7 {[%emt 0:00:26]} 31. Rh2 {[%emt 0:03:37]} Rc8 {[%emt 0:01:31]} 32. Rc2 {[%emt 0:00:32]} cxb5 {[%emt 0:01:25]} 33. axb5 {[%emt 0:00:05]} b6 {[%emt 0:00:42]} 34. c6 {[%emt 0:04:10]} Rxd6 {[%emt 0:00:05]} 35. Ra3 {[%emt 0:00:09]} Rd1+ {[%emt 0:04:08]} 36. Kf2 {[%emt 0:00:02]} Rb1 {[%emt 0:01:29]} 37. Rxa7 {[%emt 0:00:11]} Rxb5 {[%emt 0:00:54]} 38. Rxh7 {[%emt 0:00:05]} Rc5 {[%emt 0:00:18]} 39. Rxc5 {[%emt 0:00:08]} bxc5 {[%emt 0:00:02]} 40. c7 {[%emt 0:00:00]} Kd6 {[%emt 0:00:00]} 41. Rf7 {[%emt 0:01:14]} Rxc7 {[%emt 0:05:57]} 42. Rxf6+ {[%emt 0:00:47]} Kd5 {[%emt 0:00:33]} 43. Ke3 {[%emt 0:03:52]} c4 {[%emt 0:00:52]} 44. Kd2 {[%emt 0:00:46]} Rg7 {[%emt 0:01:29]} 45. Rf3 {[%emt 0:01:07]} Kd4 {[%emt 0:00:43]} 46. Ra3 {[%emt 0:00:58]} Rg8 {[%emt 0:02:01]} 47. Ke2 {[%emt 0:00:59]} e4 {[%emt 0:00:47]} 48. Kd2 {[%emt 0:00:50]} Rh8 {[%emt 0:01:07]} 49. Ra7 {[%emt 0:00:40]} c3+ {[%emt 0:01:02]} 50. Kd1 {[%emt 0:01:04]} Rh1+ {[%emt 0:00:39]} 51. Kc2 {[%emt 0:00:36]} Rh2+ {[%emt 0:00:34]} 52. Kd1 {[%emt 0:00:48]} Rd2+ {[%emt 0:02:22]} 53. Kc1 {[%emt 0:01:13]} e3 {[%emt 0:00:56]} 54. Rd7+ {[%emt 0:02:23]} Ke4 {[%emt 0:00:36]} 55. Re7+ {[%emt 0:00:33]} Kf3 {[%emt 0:00:37]} 56. Rc7 {[%emt 0:00:34]} Rh2 {[%emt 0:10:46]} 57. Rxc3 {[%emt 0:01:28]} Rh1+ {[%emt 0:04:10]} 58. Kc2 {[%emt 0:00:41]} Kf2 {[%emt 0:01:02]} 59. Kd3 {[%emt 0:02:21]} e2 {[%emt 0:02:01]} 60. Rc2 {[%emt 0:00:46]} Rd1+ {[%emt 0:01:01]} 61. Ke4 {[%emt 0:00:40]} Kf1 {[%emt 0:00:52]} 62. Rxe2 {[%emt 0:00:38]} Kxe2 {[%emt 0:00:31]} 63. g4 {[%emt 0:00:36]} Rg1 {[%emt 0:00:40]} 64. Kf4 {[%emt 0:01:36]} Kf2 {[%emt 0:00:53]} 65. g5 {[%emt 0:00:42]} Rg2 {[%emt 0:00:41]} 66. Kf5 {[%emt 0:00:49]} Kg3 {[%emt 0:00:37]} 67. Kf6 {[%emt 0:01:54]} Kh4 {[%emt 0:00:37]} 68. g6 {[%emt 0:00:35]} Kh5 {[%emt 0:00:35]} 69. g7 {[%emt 0:00:34]} Kh6 {[%emt 0:00:32]} 70. Kf7 {[%emt 0:00:35]} Rxg7+ {[%emt 0:00:34]} 0-1

[Event "4th Memorial Warakomska-A 2020"]
[Site "Suwalki"]
[Date "2020.08.12"]
[Round "8.2"]
[White "Janik, Igor"]
[Black "Praczukowski, Stanislaw"]
[Result "1-0"]
[ECO "B31"]
[WhiteElo "2467"]
[BlackElo "2132"]
[Annotator "ChessBase"]
[PlyCount "49"]
[EventDate "2020.08.06"]
[EventType "swiss"]
[EventCountry "POL"]
[SourceTitle "playchess.com"]
[Source "ChessBase"]
[SourceQuality "1"]
[TimeControl "40/5400+30:1800+30"]

1. e4 {[%emt 0:00:00]} c5 {[%emt 0:00:00]} 2. Nf3 {[%emt 0:00:00]} Nc6 {[%emt 0:00:09]} 3. Bb5 {[%emt 0:00:00]} g6 {[%emt 0:00:14]} 4. Bxc6 {[%emt 0:00:14]} bxc6 {[%emt 0:00:28]} 5. O-O {[%emt 0:01:28]} Bg7 {[%emt 0:00:24]} 6. Re1 {[%emt 0:00:28]} Nh6 {[%emt 0:00:27]} 7. d3 {[%emt 0:01:12]} O-O {[%emt 0:02:57]} 8. h3 {[%emt 0:00:05]} d6 {[%emt 0:01:00]} 9. e5 {[%emt 0:03:44]} Nf5 {[%emt 0:07:41]} 10. Bf4 {[%emt 0:00:32]} Rb8 {[%emt 0:05:17]} 11. b3 {[%emt 0:01:44]} f6 {[%emt 0:11:49]} 12. exd6 {[%emt 0:00:30]} e5 {[%emt 0:00:16]} 13. Bc1 {[%emt 0:03:36]} Qxd6 {[%emt 0:02:36]} 14. Nbd2 {[%emt 0:01:22]} Nd4 {[%emt 0:03:56]} 15. Ba3 {[%emt 0:05:36]} Nxf3+ {[%emt 0:14:15]} 16. Qxf3 {[%emt 0:01:07]} f5 {[%emt 0:00:46]} 17. Nc4 {[%emt 0:02:37]} Qc7 {[%emt 0:03:35]} 18. Bxc5 {[%emt 0:03:58]} e4 {[%emt 0:02:00]} 19. dxe4 {[%emt 0:00:39]} fxe4 {[%emt 0:00:37]} 20. Qe3 {[%emt 0:00:45]} Bxa1 {[%emt 0:03:02]} 21. Bxf8 {[%emt 0:00:14]} Kxf8 {[%emt 0:00:29]} 22. Rxa1 {[%emt 0:00:09]} Bf5 {[%emt 0:00:18]} 23. Rd1 {[%emt 0:00:11]} Re8 {[%emt 0:01:07]} 24. Qc5+ {[%emt 0:02:35]} Kg8 {[%emt 0:00:44]} 25. Rd6 {[%emt 0:00:20]} 1-0

[Event "4th Memorial Warakomska-A 2020"]
[Site "Suwalki"]
[Date "2020.08.12"]
[Round "8.3"]
[White "Kucza, Karol"]
[Black "Grabarczyk, Miroslaw"]
[Result "1/2-1/2"]
[ECO "C67"]
[WhiteElo "2245"]
[BlackElo "2366"]
[Annotator "ChessBase"]
[PlyCount "79"]
[EventDate "2020.08.06"]
[EventType "swiss"]
[EventCountry "POL"]
[SourceTitle "playchess.com"]
[Source "ChessBase"]
[SourceQuality "1"]
[TimeControl "40/5400+30:1800+30"]

1. e4 {[%emt 0:00:00]} e5 {[%emt 0:00:00]} 2. Nf3 {[%emt 0:00:00]} Nc6 {[%emt 0:00:00]} 3. Bb5 {[%emt 0:00:00]} Nf6 {[%emt 0:00:00]} 4. O-O {[%emt 0:00:00]} Nxe4 {[%emt 0:00:00]} 5. Re1 {[%emt 0:00:00]} Nd6 {[%emt 0:00:04]} 6. Nxe5 {[%emt 0:00:00]} Nxe5 {[%emt 0:00:11]} 7. Rxe5+ {[%emt 0:00:03]} Be7 {[%emt 0:00:06]} 8. Bd3 {[%emt 0:00:04]} O-O {[%emt 0:01:33]} 9. Nc3 {[%emt 0:00:04]} Bf6 {[%emt 0:04:17]} 10. Re3 {[%emt 0:00:32]} Re8 {[%emt 0:01:08]} 11. Nd5 {[%emt 0:03:11]} Bd4 {[%emt 0:06:31]} 12. Rxe8+ {[%emt 0:04:44]} Nxe8 {[%emt 0:00:09]} 13. Qe2 {[%emt 0:01:55]} Nf6 {[%emt 0:11:21]} 14. Ne7+ {[%emt 0:00:26]} Kf8 {[%emt 0:00:16]} 15. Nf5 {[%emt 0:04:52]} Bc5 {[%emt 0:06:53]} 16. b4 {[%emt 0:08:19]} Be7 {[%emt 0:02:25]} 17. Bb2 {[%emt 0:01:31]} d5 {[%emt 0:00:27]} 18. Nxe7 {[%emt 0:11:23]} Qxe7 {[%emt 0:00:07]} 19. Qxe7+ {[%emt 0:00:07]} Kxe7 {[%emt 0:00:07]} 20. Re1+ {[%emt 0:00:04]} Be6 {[%emt 0:09:11]} 21. f4 {[%emt 0:00:12]} g6 {[%emt 0:04:45]} 22. f5 {[%emt 0:00:43]} gxf5 {[%emt 0:00:37]} 23. Bxf5 {[%emt 0:00:06]} h5 {[%emt 0:02:21]} 24. Kf2 {[%emt 0:08:32]} Rg8 {[%emt 0:04:24]} 25. h3 {[%emt 0:06:54]} Rg5 {[%emt 0:03:07]} 26. Bd3 {[%emt 0:00:25]} b6 {[%emt 0:06:17]} 27. Bd4 {[%emt 0:08:36]} Ne4+ {[%emt 0:05:43]} 28. Bxe4 {[%emt 0:01:05]} dxe4 {[%emt 0:00:05]} 29. Rxe4 {[%emt 0:00:26]} Kd7 {[%emt 0:00:05]} 30. a3 {[%emt 0:09:42]} Rxg2+ {[%emt 0:06:06]} 31. Kxg2 {[%emt 0:01:14]} Bd5 {[%emt 0:00:04]} 32. d3 {[%emt 0:00:46]} f5 {[%emt 0:00:05]} 33. Kf3 {[%emt 0:00:09]} fxe4+ {[%emt 0:00:22]} 34. dxe4 {[%emt 0:00:05]} Be6 {[%emt 0:00:32]} 35. h4 {[%emt 0:00:46]} Bg4+ {[%emt 0:01:41]} 36. Kf4 {[%emt 0:00:06]} Kd6 {[%emt 0:00:57]} 37. Be5+ {[%emt 0:01:49]} Kd7 {[%emt 0:00:09]} 38. b5 {[%emt 0:01:29]} Bd1 {[%emt 0:01:43]} 39. c3 {[%emt 0:01:22]} Be2 {[%emt 0:02:44]} 40. Kg5 {[%emt 0:00:00]} 1/2-1/2

[Event "4th Memorial Warakomska-A 2020"]
[Site "Suwalki"]
[Date "2020.08.12"]
[Round "8.4"]
[White "Deruelle Sala, Albert"]
[Black "Goluch, Piotr"]
[Result "1-0"]
[ECO "A58"]
[WhiteElo "2078"]
[BlackElo "2376"]
[Annotator "ChessBase"]
[PlyCount "87"]
[EventDate "2020.08.06"]
[EventType "swiss"]
[EventCountry "POL"]
[SourceTitle "playchess.com"]
[Source "ChessBase"]
[SourceQuality "1"]
[TimeControl "40/5400+30:1800+30"]

1. d4 {[%emt 0:00:00]} Nf6 {[%emt 0:00:00]} 2. c4 {[%emt 0:00:00]} c5 {[%emt 0:00:15]} 3. d5 {[%emt 0:00:00]} b5 {[%emt 0:00:04]} 4. cxb5 {[%emt 0:02:51]} a6 {[%emt 0:00:11]} 5. bxa6 {[%emt 0:00:04]} Bxa6 {[%emt 0:00:14]} 6. Nc3 {[%emt 0:01:04]} g6 {[%emt 0:00:09]} 7. Nf3 {[%emt 0:09:04]} d6 {[%emt 0:00:12]} 8. g3 {[%emt 0:00:14]} Nbd7 {[%emt 0:00:04]} 9. Rb1 {[%emt 0:00:07]} Bg7 {[%emt 0:06:39]} 10. Bg2 {[%emt 0:00:21]} O-O {[%emt 0:00:39]} 11. O-O {[%emt 0:01:06]} Nb6 {[%emt 0:04:58]} 12. b3 {[%emt 0:00:27]} Ne8 {[%emt 0:25:08]} 13. Bb2 {[%emt 0:03:16]} Nc7 {[%emt 0:00:04]} 14. Re1 {[%emt 0:00:12]} f5 {[%emt 0:15:48]} 15. Na4 {[%emt 0:10:27]} Nxa4 {[%emt 0:07:59]} 16. Bxg7 {[%emt 0:00:59]} Kxg7 {[%emt 0:00:52]} 17. bxa4 {[%emt 0:00:09]} Ra7 {[%emt 0:10:36]} 18. Qd2 {[%emt 0:03:27]} Bc8 {[%emt 0:05:17]} 19. e4 {[%emt 0:11:32]} Rxa4 {[%emt 0:05:43]} 20. e5 {[%emt 0:01:41]} h6 {[%emt 0:02:34]} 21. Rb8 {[%emt 0:10:54]} Ra8 {[%emt 0:02:35]} 22. Rxa8 {[%emt 0:09:26]} Nxa8 {[%emt 0:00:01]} 23. Qc3 {[%emt 0:00:31]} Kh7 {[%emt 0:00:10]} 24. Nd2 {[%emt 0:00:34]} Nb6 {[%emt 0:04:27]} 25. Qa1 {[%emt 0:02:10]} Bd7 {[%emt 0:01:03]} 26. f4 {[%emt 0:02:10]} Kg8 {[%emt 0:04:30]} 27. h4 {[%emt 0:00:54]} c4 {[%emt 0:00:57]} 28. h5 {[%emt 0:01:54]} gxh5 {[%emt 0:00:21]} 29. Qd1 {[%emt 0:02:38]} c3 {[%emt 0:01:19]} 30. Nb3 {[%emt 0:00:15]} Nc4 {[%emt 0:01:05]} 31. Qxh5 {[%emt 0:01:10]} Kg7 {[%emt 0:00:08]} 32. Kh2 {[%emt 0:00:38]} c2 {[%emt 0:01:04]} 33. Bf1 {[%emt 0:05:37]} Qb6 {[%emt 0:00:44]} 34. Qe2 {[%emt 0:06:32]} Na3 {[%emt 0:00:29]} 35. Qd2 {[%emt 0:03:59]} Kg6 {[%emt 0:00:35]} 36. Bd3 {[%emt 0:01:21]} Rc8 {[%emt 0:00:25]} 37. g4 {[%emt 0:00:22]} Nc4 {[%emt 0:00:35]} 38. gxf5+ {[%emt 0:04:32]} Kh7 {[%emt 0:00:03]} 39. f6+ {[%emt 0:00:55]} Kh8 {[%emt 0:00:01]} 40. Bxc4 {[%emt 0:00:00]} Rxc4 {[%emt 0:00:00]} 41. f7 {[%emt 0:02:55]} Rc8 {[%emt 0:02:42]} 42. e6 {[%emt 0:00:56]} Ba4 {[%emt 0:01:45]} 43. Rg1 {[%emt 0:08:48]} Bxb3 {[%emt 0:00:38]} 44. Qc3+ {[%emt 0:01:01]} 1-0

[Event "4th Memorial Warakomska-A 2020"]
[Site "Suwalki"]
[Date "2020.08.12"]
[Round "8.5"]
[White "Lewicki, Miroslaw"]
[Black "Bugajski, Robert"]
[Result "1-0"]
[ECO "B92"]
[WhiteElo "2340"]
[BlackElo "2081"]
[Annotator "ChessBase"]
[PlyCount "111"]
[EventDate "2020.08.06"]
[EventType "swiss"]
[EventCountry "POL"]
[SourceTitle "playchess.com"]
[Source "ChessBase"]
[SourceQuality "1"]
[TimeControl "40/5400+30:1800+30"]

1. e4 {[%emt 0:00:46]} c5 {[%emt 0:00:00]} 2. Nf3 {[%emt 0:00:06]} d6 {[%emt 0:00:00]} 3. d4 {[%emt 0:00:06]} cxd4 {[%emt 0:00:00]} 4. Nxd4 {[%emt 0:00:03]} Nf6 {[%emt 0:00:05]} 5. Nc3 {[%emt 0:00:04]} a6 {[%emt 0:00:07]} 6. Be2 {[%emt 0:00:05]} e5 {[%emt 0:00:08]} 7. Nb3 {[%emt 0:00:06]} Be7 {[%emt 0:00:05]} 8. O-O {[%emt 0:00:06]} O-O {[%emt 0:00:12]} 9. Be3 {[%emt 0:00:15]} Be6 {[%emt 0:00:13]} 10. Nd5 {[%emt 0:02:11]} Nbd7 {[%emt 0:02:30]} 11. Nxe7+ {[%emt 0:01:31]} Qxe7 {[%emt 0:00:12]} 12. Bf3 {[%emt 0:01:05]} Rfc8 {[%emt 0:07:53]} 13. Qd2 {[%emt 0:01:49]} h6 {[%emt 0:04:09]} 14. Rfd1 {[%emt 0:01:19]} b6 {[%emt 0:19:16]} 15. c3 {[%emt 0:02:30]} Rc6 {[%emt 0:01:27]} 16. h3 {[%emt 0:00:07]} a5 {[%emt 0:01:41]} 17. Nc1 {[%emt 0:02:44]} Rac8 {[%emt 0:02:25]} 18. Ne2 {[%emt 0:00:11]} b5 {[%emt 0:04:58]} 19. Ng3 {[%emt 0:00:29]} Nb6 {[%emt 0:01:27]} 20. b3 {[%emt 0:05:05]} Qb7 {[%emt 0:08:04]} 21. Rac1 {[%emt 0:10:42]} a4 {[%emt 0:00:56]} 22. Qb2 {[%emt 0:00:14]} axb3 {[%emt 0:01:37]} 23. axb3 {[%emt 0:00:04]} Nbd7 {[%emt 0:01:32]} 24. Nf5 {[%emt 0:02:20]} Bxf5 {[%emt 0:01:51]} 25. exf5 {[%emt 0:00:05]} e4 {[%emt 0:00:27]} 26. Be2 {[%emt 0:00:04]} d5 {[%emt 0:02:35]} 27. Bd4 {[%emt 0:03:23]} b4 {[%emt 0:02:32]} 28. c4 {[%emt 0:00:13]} dxc4 {[%emt 0:04:21]} 29. Bxc4 {[%emt 0:00:06]} Nb6 {[%emt 0:01:30]} 30. Be2 {[%emt 0:01:25]} Nbd5 {[%emt 0:02:47]} 31. Rxc6 {[%emt 0:00:13]} Qxc6 {[%emt 0:02:25]} 32. Bc4 {[%emt 0:00:49]} Nb6 {[%emt 0:05:26]} 33. Ba6 {[%emt 0:00:18]} Rd8 {[%emt 0:03:16]} 34. Rc1 {[%emt 0:00:20]} Qd6 {[%emt 0:01:50]} 35. Bc5 {[%emt 0:01:26]} Qb8 {[%emt 0:02:33]} 36. Be7 {[%emt 0:01:03]} Rd7 {[%emt 0:04:24]} 37. Bxf6 {[%emt 0:00:12]} gxf6 {[%emt 0:00:05]} 38. Qxf6 {[%emt 0:00:09]} Qf4 {[%emt 0:01:06]} 39. Rf1 {[%emt 0:03:41]} Rd6 {[%emt 0:02:33]} 40. Qe7 {[%emt 0:00:00]} Nd5 {[%emt 0:00:00]} 41. Qa7 {[%emt 0:00:46]} Kg7 {[%emt 0:09:59]} 42. Bc4 {[%emt 0:00:06]} e3 {[%emt 0:09:10]} 43. f6+ {[%emt 0:06:06]} Rxf6 {[%emt 0:07:40]} 44. Bxd5 {[%emt 0:00:08]} e2 {[%emt 0:00:56]} 45. Re1 {[%emt 0:00:05]} Qd2 {[%emt 0:00:38]} 46. Qa1 {[%emt 0:00:04]} Qxd5 {[%emt 0:01:39]} 47. Rxe2 {[%emt 0:00:04]} Kg6 {[%emt 0:03:11]} 48. Re3 {[%emt 0:00:49]} Rf5 {[%emt 0:01:08]} 49. Qb1 {[%emt 0:01:05]} Kf6 {[%emt 0:02:44]} 50. Qb2+ {[%emt 0:00:10]} Kg6 {[%emt 0:00:30]} 51. h4 {[%emt 0:05:27]} f6 {[%emt 0:02:45]} 52. Qc2 {[%emt 0:00:19]} Qc5 {[%emt 0:00:45]} 53. Qe4 {[%emt 0:00:35]} Qd5 {[%emt 0:02:08]} 54. Qe8+ {[%emt 0:00:08]} Qf7 {[%emt 0:01:06]} 55. Rg3+ {[%emt 0:00:06]} Rg5 {[%emt 0:00:07]} 56. Qxf7+ {[%emt 0:00:06]} 1-0

[Event "4th Memorial Warakomska-A 2020"]
[Site "Suwalki"]
[Date "2020.08.12"]
[Round "8.6"]
[White "Shilov, Sergej"]
[Black "Leskiewicz, Ignacy"]
[Result "1-0"]
[ECO "E97"]
[WhiteElo "2121"]
[BlackElo "2190"]
[Annotator "ChessBase"]
[PlyCount "129"]
[EventDate "2020.08.06"]
[EventType "swiss"]
[EventCountry "POL"]
[SourceTitle "playchess.com"]
[Source "ChessBase"]
[SourceQuality "1"]
[TimeControl "40/5400+30:1800+30"]

1. d4 {[%emt 0:00:00]} Nf6 {[%emt 0:00:00]} 2. Nf3 {[%emt 0:00:31]} g6 {[%emt 0:00:00]} 3. c4 {[%emt 0:00:18]} Bg7 {[%emt 0:00:07]} 4. Nc3 {[%emt 0:00:06]} d6 {[%emt 0:00:28]} 5. e4 {[%emt 0:00:29]} O-O {[%emt 0:00:42]} 6. Be2 {[%emt 0:00:32]} e5 {[%emt 0:03:04]} 7. O-O {[%emt 0:01:05]} Nc6 {[%emt 0:00:05]} 8. d5 {[%emt 0:01:07]} Ne7 {[%emt 0:00:02]} 9. b4 {[%emt 0:00:10]} Ne8 {[%emt 0:06:57]} 10. c5 {[%emt 0:00:28]} h6 {[%emt 0:07:28]} 11. a4 {[%emt 0:12:45]} f5 {[%emt 0:04:30]} 12. Ba3 {[%emt 0:03:21]} g5 {[%emt 0:10:26]} 13. Rc1 {[%emt 0:02:49]} Ng6 {[%emt 0:17:27]} 14. Nd2 {[%emt 0:18:17]} Nf4 {[%emt 0:13:43]} 15. exf5 {[%emt 0:00:40]} Nxe2+ {[%emt 0:03:55]} 16. Qxe2 {[%emt 0:00:21]} Bxf5 {[%emt 0:01:35]} 17. Nde4 {[%emt 0:00:22]} Rf7 {[%emt 0:04:34]} 18. Rfd1 {[%emt 0:04:29]} Bf8 {[%emt 0:03:10]} 19. b5 {[%emt 0:02:41]} Rh7 {[%emt 0:03:40]} 20. a5 {[%emt 0:03:20]} Qd7 {[%emt 0:01:41]} 21. Bb4 {[%emt 0:07:03]} b6 {[%emt 0:05:48]} 22. cxb6 {[%emt 0:05:03]} axb6 {[%emt 0:00:45]} 23. Ra1 {[%emt 0:01:02]} bxa5 {[%emt 0:05:50]} 24. Bxa5 {[%emt 0:00:27]} Be7 {[%emt 0:00:14]} 25. Qc4 {[%emt 0:01:06]} Bd8 {[%emt 0:00:35]} 26. Bb4 {[%emt 0:01:07]} Rb8 {[%emt 0:00:15]} 27. Ra7 {[%emt 0:01:09]} Rf7 {[%emt 0:00:57]} 28. Ba5 {[%emt 0:03:10]} Qc8 {[%emt 0:01:21]} 29. Ra1 {[%emt 0:05:50]} h5 {[%emt 0:04:21]} 30. Bb4 {[%emt 0:05:44]} h4 {[%emt 0:00:14]} 31. Qc6 {[%emt 0:07:01]} Bd7 {[%emt 0:00:25]} 32. Qc4 {[%emt 0:00:05]} Bf5 {[%emt 0:00:43]} 33. R1a3 {[%emt 0:00:23]} h3 {[%emt 0:00:48]} 34. g3 {[%emt 0:00:59]} Bg6 {[%emt 0:00:33]} 35. Qe2 {[%emt 0:00:39]} Rh7 {[%emt 0:00:32]} 36. g4 {[%emt 0:00:44]} Rf7 {[%emt 0:00:31]} 37. f3 {[%emt 0:00:51]} Rf4 {[%emt 0:00:16]} 38. Ba5 {[%emt 0:00:41]} Rb7 {[%emt 0:00:43]} 39. Ra6 {[%emt 0:00:19]} Kg7 {[%emt 0:00:32]} 40. Nf2 {[%emt 0:00:00]} Nf6 {[%emt 0:00:00]} 41. Nxh3 {[%emt 0:01:25]} Rd4 {[%emt 0:01:33]} 42. Rc6 {[%emt 0:09:10]} Nxd5 {[%emt 0:18:05]} 43. Nxd5 {[%emt 0:04:03]} Rxd5 {[%emt 0:00:01]} 44. b6 {[%emt 0:00:16]} Qd7 {[%emt 0:02:50]} 45. Rc1 {[%emt 0:04:34]} cxb6 {[%emt 0:01:16]} 46. Bd2 {[%emt 0:00:01]} e4 {[%emt 0:05:00]} 47. fxe4 {[%emt 0:02:06]} Rc5 {[%emt 0:03:05]} 48. Rf1 {[%emt 0:02:36]} b5 {[%emt 0:02:00]} 49. Be3 {[%emt 0:00:49]} Re5 {[%emt 0:00:33]} 50. Bd4 {[%emt 0:08:27]} Bb6 {[%emt 0:00:33]} 51. Bxb6 {[%emt 0:00:17]} Rxb6 {[%emt 0:00:01]} 52. Qf2 {[%emt 0:00:01]} b4 {[%emt 0:01:30]} 53. Qf6+ {[%emt 0:00:54]} Kh7 {[%emt 0:00:25]} 54. Nxg5+ {[%emt 0:00:51]} Rxg5 {[%emt 0:00:30]} 55. Rh3+ {[%emt 0:00:10]} Rh5 {[%emt 0:00:33]} 56. gxh5 {[%emt 0:00:34]} Bxe4 {[%emt 0:00:32]} 57. Rg3 {[%emt 0:00:37]} Rb8 {[%emt 0:00:26]} 58. h6 {[%emt 0:00:56]} Qa7+ {[%emt 0:00:37]} 59. Rf2 {[%emt 0:00:35]} Rb7 {[%emt 0:00:07]} 60. h4 {[%emt 0:03:03]} b3 {[%emt 0:00:44]} 61. Qf8 {[%emt 0:00:26]} Bg6 {[%emt 0:00:29]} 62. Rxg6 {[%emt 0:00:43]} Kxg6 {[%emt 0:00:34]} 63. Kh2 {[%emt 0:03:45]} Qd4 {[%emt 0:00:27]} 64. Rg2+ {[%emt 0:00:18]} Kh5 {[%emt 0:00:35]} 65. Qf5+ {[%emt 0:00:09]} 1-0

[Event "4th Memorial Warakomska-A 2020"]
[Site "Suwalki"]
[Date "2020.08.12"]
[Round "8.7"]
[White "Malaczek, Mateusz"]
[Black "Rudzinska, Michalina"]
[Result "1/2-1/2"]
[ECO "A26"]
[WhiteElo "2036"]
[BlackElo "2080"]
[Annotator "NA"]
[PlyCount "81"]
[EventDate "2020.08.06"]
[EventType "swiss"]
[EventCountry "POL"]
[SourceTitle "playchess.com"]
[Source "ChessBase"]
[SourceQuality "1"]
[TimeControl "40/5400+30:1800+30"]

1. c4 {[%emt 0:00:00]} e5 {[%emt 0:00:00]} 2. g3 {[%emt 0:00:00]} Nc6 {[%emt 0:00:00]} 3. Bg2 {[%emt 0:00:00]} g6 {[%emt 0:00:00]} 4. Nc3 {[%emt 0:00:16]} Bg7 {[%emt 0:00:00]} 5. d3 {[%emt 0:00:16]} d6 {[%emt 0:00:08]} 6. Rb1 {[%emt 0:08:51]} a5 {[%emt 0:00:14]} 7. a3 {[%emt 0:00:43]} f5 {[%emt 0:00:31]} 8. Nf3 {[%emt 0:09:06]} Nf6 {[%emt 0:00:56]} 9. O-O {[%emt 0:00:10]} O-O {[%emt 0:00:12]} 10. b4 {[%emt 0:00:24]} axb4 {[%emt 0:00:11]} 11. axb4 {[%emt 0:00:07]} Ne7 {[%emt 0:05:14]} 12. Qb3 {[%emt 0:03:08] A26: English Opening vs King's Indian with ...Nc6 and d3.} h6 {[%emt 0:01:55]} 13. c5+ {[%emt 0:11:08]} Kh7 {[%emt 0:00:53]} 14. cxd6 {[%emt 0:02:01]} cxd6 {[%emt 0:04:35] [#]} 15. Bb2 $146 {[%emt 0:03:23]} ({Predecessor:} 15. Ba3 g5 16. b5 Ng6 17. Nd2 Re8 18. Nc4 d5 19. Nd6 Rxa3 20. Qxa3 Bf8 21. Nxb7 Bxb7 {0-1 (41) Ramesa,D (2134)-Barnaure,V (2198) Balatonlelle 2002}) 15... Bd7 {[%emt 0:07:02]} 16. Rfc1 {[%emt 0:14:52]} g5 {[%emt 0:08:30]} 17. b5 {[%emt 0:02:56]} Be8 {[%emt 0:03:38]} 18. Ra1 {[%emt 0:05:27]} Rxa1 {[%emt 0:02:36]} 19. Rxa1 {[%emt 0:00:18]} Qb6 {[%emt 0:04:39]} 20. Qe6 {[%emt 0:18:04]} Ng6 {[%emt 0:08:06]} 21. Na4 {[%emt 0:04:26]} Qxb5 {[%emt 0:08:23]} 22. Qxd6 {[%emt 0:01:23]} Qb3 {[%emt 0:02:03]} 23. Nd2 {[%emt 0:01:29]} Qc2 {[%emt 0:04:56]} 24. Qb4 {[%emt 0:00:20]} Rf7 {[%emt 0:07:40]} 25. Nb6 {[%emt 0:04:22]} Bf8 {[%emt 0:02:52]} 26. Qc3 {[%emt 0:00:13]} Qxc3 {[%emt 0:00:09]} 27. Bxc3 {[%emt 0:00:03]} Bc5 {[%emt 0:00:55]} 28. Ndc4 {[%emt 0:01:04]} f4 {[%emt 0:03:06]} 29. Ra5 {[%emt 0:01:08]} fxg3 {[%emt 0:07:31]} 30. hxg3 {[%emt 0:02:41]} Bxf2+ {[%emt 0:00:47]} 31. Kxf2 {[%emt 0:00:06]} Ne4+ {[%emt 0:00:18]} 32. Ke1 {[%emt 0:00:11]} Nxc3 {[%emt 0:00:06]} 33. Nxe5 {[%emt 0:05:38]} Re7 {[%emt 0:00:59]} 34. d4 {[%emt 0:01:59]} Nxe5 {[%emt 0:02:12]} 35. dxe5 {[%emt 0:00:19]} Bc6 {[%emt 0:02:51]} 36. Bxc6 {[%emt 0:00:47]} bxc6 {[%emt 0:00:06]} 37. Rc5 {[%emt 0:00:37]} Ne4 {[%emt 0:00:24]} 38. Rxc6 {[%emt 0:00:03]} Rxe5 {[%emt 0:01:11]} 39. Rc7+ {[%emt 0:00:55]} Kg6 {[%emt 0:00:19]} 40. g4 {[%emt 0:00:00]} Re6 {[%emt 0:00:00]} 41. Nd5 $11 {[%emt 0:04:10]} 1/2-1/2